Cogmind - Beta 15 @@@ ROGUE MODE // 2025.09.12 @ 05:41:08 Player: GermanMO Result: Destroyed by G-47 Trooper with Particle Gun Performance ------------- Evolutions (2) 1000 Regions Visited (3) 600 Robots Destroyed (56) 280 Value Destroyed (1744) 1744 Prototype IDs (4) 80 Alien Tech Used (0) 0 Bonus (200) 200 TOTAL SCORE: 3904 Bonus ------- Pacifist 200 Cogmind --------- Core Integrity 0/550 Matter 247/300 Energy 43/100 System Corruption 25% Temperature Cool (30) Movement Walking (120) Location -8/Materials Parts ------- > --- POWER (2) -------- (None) > --- PROPULSION (4) --- Improved Carbon-fiber Leg > --- UTILITY (3) ------ Advanced Visual Processing Unit Improved Terrain Scan Processor Transport Network Coupler > --- WEAPON (2) ------- Pulse Rifle Gauss Rifle > --- INVENTORY (5) ---- Targeting Computer Hardened Medium Armor Plating Maul Peak State ------------ > --- POWER ------------ Improved Deuterium Engine > --- PROPULSION ------- Improved Carbon-fiber Leg Improved Carbon-fiber Leg > --- UTILITY ---------- Advanced Visual Processing Unit Improved Terrain Scan Processor Transport Network Coupler > --- WEAPON ----------- Gauss Rifle Maul > --- INVENTORY -------- Targeting Computer Hardened Medium Armor Plating [Rating: 25] Favorites ----------- Power Light Ion Engine Engine Light Ion Engine Power Core Light Nuclear Core Propulsion Light Treads Treads Light Treads Leg Improved Carbon-fiber Leg Utility Transport Network Coupler Device Improved Sensor Array Processor Transport Network Coupler Protection Weapon Shielding Weapon Advanced Beam Cannon Energy Gun Improved Medium Laser Energy Cannon Advanced Beam Cannon Ballistic Gun Gauss Rifle Launcher Advanced EMP Blaster Impact Weapon Maul Build | -11 -10 -9 -8 ------- Run | Yrd Mat Mat Mat Slots Evolved 4 | . . 2 2 Power 1 | . . . 1 Propulsion 2 | . . 1 1 Utility 1 | . . 1 . Weapon . | . . . . Parts Attached 33 | . . 15 18 Power 7 | . . 3 4 Engine 6 | . . 3 3 Core 1 | . . . 1 Reactor . | . . . . Propulsion 7 | . . 3 4 Treads 5 | . . 3 2 Leg 2 | . . . 2 Wheel . | . . . . Hover . | . . . . Flight . | . . . . Utility 7 | . . 3 4 Device 1 | . . . 1 Storage . | . . . . Processor 5 | . . 2 3 Hackware . | . . . . Protection 1 | . . 1 . Artifact . | . . . . Weapon 12 | . . 6 6 Energy Gun 4 | . . 2 2 Energy Cannon 4 | . . 2 2 Ballistic Gun 2 | . . 1 1 Ballistic Cannon . | . . . . Launcher 1 | . . . 1 Special Weapon . | . . . . Impact Weapon 1 | . . 1 . Slashing Weapon . | . . . . Piercing Weapon . | . . . . Special Melee Weapon . | . . . . Unidentified Prototypes 4 | . . 2 2 Corrupted Parts 4 | . . . 4 System Corruption 25 | . . . 25 Parts Lost 18 | . . 3 15 Power 7 | . . 2 5 Propulsion 6 | . . 1 5 Utility 2 | . . . 2 Weapon 3 | . . . 3 Highest Loss Streak 3 | . . 1 3 To Critical Strikes . | . . . . Average Backups 3 | 2 5 1 3 Power . | . 1 . . Propulsion . | 1 2 . . Utility . | . . . 1 Weapon 1 | 1 2 1 1 Tool/Special . | . . . . Unused Backups 3 | . . . 3 Power . | . . . . Propulsion . | . . . . Utility 2 | . . . 2 Weapon 1 | . . . 1 Tool/Special . | . . . . Average Slot Usage (%) 69 | . . 80 62 Engine 7 | . . 9 6 Core 1 | . . . 2 Treads 17 | . . 30 7 Device 2 | . . . 3 Processor 15 | . . 10 19 Protection 5 | . . 9 2 Energy Gun 1 | . . 3 . Energy Cannon 12 | . . 12 12 Launcher 1 | . . . 3 Impact Weapon 2 | . . 4 . Peak Build Rating 25 | . . 13 25 Average Rating 14 | . . 10 17 On Entrance 3 | . . . 13 Naked Turns 56 | . 34 22 . Heaviest Build 24 | . . 16 24 Greatest Support 60 | 3 3 60 60 Greatest Overweight (x) 4 | . . . 4 Average Overweight (x) . | . . . . Largest Inventory Capacity 5 | 5 5 5 5 Average Capacity 5 | 5 5 5 5 Most Carried 5 | 5 5 5 5 Average Carried 2 | 3 5 1 3 Final Capacity 5 | 5 5 5 5 Final Carried 5 | 5 5 4 3 Class Distribution -------------------- 78% | Mutant 21% | Scavenger-Mutant Dominant Class ---------------- Mutant | -10/Materials Mutant | -9/Materials Mutant | -8/Materials Resources | -11 -10 -9 -8 ----------- Run | Yrd Mat Mat Mat Matter Collected 782 | 142 . 377 263 Remotely . | . . . . Salvage Created 2399 | . . 1275 1124 Parts 129 | . . 70 59 Haulers Intercepted 7 | . . 5 2 Recyclers Shooed 1 | . . 1 . Parts Field Recycled . | . . . . Retrieved Matter . | . . . . Parts Self-Destructed . | . . . . Prevented . | . . . . Kills | -11 -10 -9 -8 ------- Run | Yrd Mat Mat Mat Combat Hostiles Destroyed 43 | . . 22 21 Guns 7 | . . 4 3 Cannons 28 | . . 15 13 AOE 4 | . . . 4 Classes Destroyed 10 | . . 7 3 Worker 2 | . . 2 . Builder 2 | . . 2 . Hauler 7 | . . 5 2 Recycler 1 | . . . 1 Watcher 1 | . . 1 . Swarmer 7 | . . 3 4 Grunt 25 | . . 15 10 Brawler 1 | . . . 1 Sentry 6 | . . 4 2 Specialist 4 | . . . 4 Best Kill Streak 4 | . . 4 3 Combat Bots Only 3 | . . 3 3 Max Kills in Single Turn 2 | . . 2 2 Gunslinging . | . . . . Exploded 2 | . . . 2 Melee . | . . . . Uniques/NPCs Destroyed . | . . . . Combat | -11 -10 -9 -8 -------- Run | Yrd Mat Mat Mat Hostile Shots Fired 217 | . . 75 142 Missed 63 | . . 24 39 Hits 154 | . . 51 103 Projectile 154 | . . 51 103 Critical Strikes 7 | . . . 7 Actively Blocked 1 | . . . 1 Damage Taken 2450 | . . 644 1806 Core 655 | . . 100 555 Absorbed by Shields . | . . . . Redirected to Shielding 51 | . . 32 19 Core Remaining (%) 91 | 100 100 75 . Volleys Fired 167 | . . 77 90 Largest 2 | . . 2 2 Hottest 143 | . . 136 143 Shots Fired 280 | . . 139 141 Gun 67 | . . 39 28 Cannon 207 | . . 100 107 Launcher 6 | . . . 6 Special . | . . . . Kinetic 28 | . . 5 23 Thermal 240 | . . 129 111 Explosive . | . . . . Electromagnetic 12 | . . 5 7 Robot Hit Streak 11 | . . 11 9 Robot Miss Streak 5 | . . 5 4 Penetration Max . | . . . . Secondary Targets . | . . . . Shots Hit Robots 173 | . . 92 81 Core Hits 74 | . . 34 40 Critical Kills 2 | . . 2 . Critical Parts Destroyed 5 | . . 4 1 Critical Strikes 10 | . . 8 2 Burn 3 | . . 2 1 Meltdown 2 | . . 2 . Smash 5 | . . 4 1 Melee Attacks 18 | . . 10 8 Impact 18 | . . 10 8 Slashing . | . . . . Piercing . | . . . . Sneak Attacks 3 | . . 2 1 Combat Hostiles . | . . . . Follow-up Attacks . | . . . . Damage Inflicted 4056 | . . 2005 2051 Guns 705 | . . 394 311 Cannons 2501 | . . 1229 1272 Explosions 322 | . . . 322 Melee 513 | . . 367 146 Ramming 15 | . . 15 . Kinetic 289 | . . 40 249 Thermal 2893 | . . 1570 1323 Explosive . | . . . . Electromagnetic 346 | . . 13 333 Impact 513 | . . 367 146 Slashing . | . . . . Piercing . | . . . . Highest Corruption 25 | . . . 25 Average Corruption 12 | . . . 12 Corruption Purged . | . . . . Corruption Blocked . | . . . . Effects 15 | . . . 15 Message Errors 5 | . . . 5 Matter Fused 3 | . . . 3 Heat Flow Errors 2 | . . . 2 Parts Rejected 2 | . . . 2 Data Loss (major) 2 | . . . 2 Misfires 1 | . . . 1 Overload Shots . | . . . . Overflow Damage 276 | . . 212 64 Projectiles 17 | . . 13 4 Explosions 18 | . . . 18 Melee 241 | . . 199 42 Knockbacks 2 | . . 1 1 Impact 2 | . . 1 1 Kinetic . | . . . . Secondary . | . . . . Self-Inflicted Damage 128 | . . . 128 Shots 4 | . . . 4 Rammed 3 | . . 3 . Targets Rammed 3 | . . 3 . Kicked . | . . . . Crushed . | . . . . Highest Temperature 550 | . . 550 548 Average Temperature 154 | . . 184 121 Received Heat Transfer 936 | . . 315 621 Effects 17 | . . 8 9 Shutdowns 7 | . . 3 4 Matter Decay 2 | . . 2 . Short Circuit 1 | . . 1 . Damage (minor) 4 | . . 2 2 Damage (major) 3 | . . . 3 Siege Activations . | . . . . Martial Activations . | . . . . Shielding Activations . | . . . . Robots Disrupted . | . . . . Combat Hostiles . | . . . . Robots Corrupted 2 | . . 1 1 Combat Hostiles 2 | . . 1 1 Parts Fried 5 | . . 3 2 Impact Corruptions 9 | . . 6 3 Robots Melted 2 | . . 2 . Combat Hostiles 2 | . . 2 . Parts Melted 9 | . . 7 2 Heat Transferred 5439 | . . 3108 2331 Parts Sabotaged . | . . . . Parts Stolen . | . . . . Parts Stripped . | . . . . Power Chain Reactions . | . . . . Alert | -11 -10 -9 -8 ------- Run | Yrd Mat Mat Mat Maximum Alert Level 1 | . . 1 1 Low Security (%) 87 | 100 100 84 88 Level 1 12 | . . 15 11 Level 2 . | . . . . Level 3 . | . . . . Level 4 . | . . . . Level 5 . | . . . . High Security . | . . . . Max Security . | . . . . Peak Influence 355 | . . 292 355 Initial 116 | . . . 116 Average 100 | . . 92 110 Influence Increases 1579 | . . 658 921 Destroy 0b10 Robot/C 860 | . . 440 420 Destroy 0b10 Robot/NC 65 | . . 50 15 Destroy Leader 196 | . . 102 94 Successful Hack 5 | . . 5 . Disable Machine 75 | . . . 75 Destroy Structure 33 | . . 1 32 Lose Combat Pursuer 345 | . . 60 285 Influence Decreases 1234 | . . 382 852 Entered New Map 160 | . . . 160 Time Decay 894 | . . 352 542 Lost Part 180 | . . 30 150 Squads Dispatched 9 | . . 2 7 Investigation 2 | . . 1 1 Extermination . | . . . . Reinforcement 7 | . . 1 6 Assault . | . . . . Garrison . | . . . . Intercept . | . . . . Searches Triggered . | . . . . Construction Impeded 1 | . . . 1 Haulers Reinforced . | . . . . Active Scanning Responses . | . . . . Cargo Convoy Interrupts . | . . . . Stealth | -11 -10 -9 -8 --------- Run | Yrd Mat Mat Mat Distress Signals 2 | . . 1 1 Communications Jammed . | . . . . Distress Signals . | . . . . Times Spotted 70 | . . 31 39 Peak Tracking Total 10 | . . 5 10 Tactical Retreats 11 | . . 3 8 Traps | -11 -10 -9 -8 ------- Run | Yrd Mat Mat Mat Traps Triggered 3 | . . 2 1 Indirectly . | . . . . Trap Hack Attempts . | . . . . Triggered . | . . . . Disarmed . | . . . . Reprogrammed . | . . . . Reused . | . . . . Traps Extracted . | . . . . Installed . | . . . . Triggered . | . . . . Machines | -11 -10 -9 -8 ---------- Run | Yrd Mat Mat Mat Machines Disabled 5 | . . . 5 Max in Single Turn 2 | . . . 2 Machines Repaired . | . . . . Machines Dismantled . | . . . . Machines Sabotaged . | . . . . Overloaded Fab Kills . | . . . . Hacking | -11 -10 -9 -8 --------- Run | Yrd Mat Mat Mat Machines Accessed 2 | . 1 1 . Terminals 2 | . 1 1 . Fabricators . | . . . . Repair Stations . | . . . . Recycling Units . | . . . . Scanalyzers . | . . . . Garrison Access . | . . . . Total Hacks 3 | . 2 1 . Successful 2 | . 1 1 . Failed 1 | . 1 . . Catastrophic . | . . . . Database Lockouts . | . . . . Manual . | . . . . Terminals 3 | . 2 1 . Fabricators . | . . . . Repair Stations . | . . . . Recycling Units . | . . . . Scanalyzers . | . . . . Garrison Access . | . . . . Terminal Hacks 2 | . 1 1 . Zone Layout 2 | . 1 1 . Fabricator Hacks . | . . . . Repair Station Hacks . | . . . . Recycling Unit Hacks . | . . . . Scanalyzer . | . . . . Garrison Access Hacks . | . . . . Unauthorized Hacks . | . . . . Terminals . | . . . . Fabricators . | . . . . Repair Stations . | . . . . Recycling Units . | . . . . Scanalyzers . | . . . . Garrison Access . | . . . . Data Cores Recovered . | . . . . Used . | . . . . Hacking Detections . | . . . . Full Trace Events . | . . . . Feedback Events . | . . . . Feedback Blocked . | . . . . Robot Schematics Acquired . | . . . . Robots Built . | . . . . Authchips . | . . . . Time . | . . . . Total Robot Build Rating . | . . . . Part Schematics Acquired . | . . . . Parts Built . | . . . . Authchips . | . . . . Time . | . . . . Total Part Build Rating . | . . . . Parts Repaired . | . . . . Time . | . . . . Parts Recycled . | . . . . Recycled Matter . | . . . . Retrieved Matter . | . . . . Retrieved Components . | . . . . Parts Scanalyzed . | . . . . Part Schematics Acquired . | . . . . Parts Damaged . | . . . . Bothacking | -11 -10 -9 -8 ------------ Run | Yrd Mat Mat Mat Used RIF Installer . | . . . . Robots Hacked . | . . . . Non-combat . | . . . . Combat . | . . . . Robot Hacks Applied . | . . . . Relay Couplers Released . | . . . . Fabnet Peak Effective % . | . . . . Robots Rewired . | . . . . Allies Hacked . | . . . . Hacks Repelled . | . . . . Allies | -11 -10 -9 -8 -------- Run | Yrd Mat Mat Mat Total Allies . | . . . . Largest Group . | . . . . Highest-Rated Group . | . . . . Highest-Rated Ally . | . . . . Total Orders . | . . . . Ally Attacks . | . . . . Total Damage . | . . . . Kills . | . . . . Allies Corrupted . | . . . . Allies Melted . | . . . . Intel | -11 -10 -9 -8 ------- Run | Yrd Mat Mat Mat Active Infowar (turns) 1672 | . . 119 1553 Optics 802 | . . . 802 Sensors 640 | . . . 640 T.N.C. 1672 | . . 119 1553 Robot Analysis Total . | . . . . Derelict Logs Recovered . | . . . . Drone Launches . | . . . . Drone Recoveries . | . . . . Exploration | -11 -10 -9 -8 ------------- Run | Yrd Mat Mat Mat Turns Passed 2818 | 23 34 1208 1553 Spaces Moved 1292 | 36 68 593 595 Core 328 | 36 68 42 182 Treads 918 | . . 551 367 Legs 46 | . . . 46 Wheels . | . . . . Hover . | . . . . Flight . | . . . . Fastest Speed 50 | 50 50 50 50 Average Speed 152 | 50 50 152 171 Slowest Speed 250 | 50 50 160 250 Overloaded Moves . | . . . . Propulsion Burnouts . | . . . . Robots Hopped . | . . . . Potential Cave-ins . | . . . . Cave-ins Triggered . | . . . . Exploration Rate (%) 25 | 3 20 49 28 Regions Visited 3 Branch Regions . Pre-discovered Areas . | . . . . Known Exits Taken . | . . . . Unknown Exits Taken 3 | 1 1 1 . Scrap Searched . | . . . . Spaces Dug . | . . . . Terrain Destroyed 36 | . . . 36 Melee . | . . . . Projectile 9 | . . . 9 AOE 26 | . . . 26 Terrain Rammed . | . . . . Walls Destroyed . | . . . . Machines Disabled . | . . . . Actions | -11 -10 -9 -8 --------- Run | Yrd Mat Mat Mat Total 1823 | 40 67 742 974 Wait 249 | . . 15 234 Move 1289 | 35 67 592 595 Hop . | . . . . Pick Up 40 | 5 . 17 18 Fast Attach 2 | . . . 2 Attach 40 | . . 20 20 Detach 6 | . . 4 2 Swap . | . . . . Drop 9 | . . 4 5 Fire 167 | . . 77 90 Melee 18 | . . 10 8 Ram . | . . . . Kick . | . . . . Crush 3 | . . 3 . Escape Stasis . | . . . . Rewire . | . . . . Trap . | . . . . Miscellaneous . | . . . . Route ------- -11/Scrapyard -10/Materials -9/Materials (discovered 2 exits: [*Mat] / [*Min]) -8/Materials (discovered 1 exit: [*Fac]) History --------- Turn | Location | Event 5 | -11/Scrapyard | Discovered new exit (range 16) 24 | -11/Scrapyard | Entered Materials 49 | -10/Materials | Discovered new exit (range 15) 58 | -10/Materials | Entered another Materials area 58 | -9/Materials | Evolved 2 slots: Propulsion x1, Utility x1 303 | -9/Materials | Build established: Mutant 967 | -9/Materials | Discovered new exit (range 8) 1049 | -9/Materials | Discovered new exit (range 3) 1266 | -9/Materials | Entered another Materials area 1266 | -8/Materials | Evolved 2 slots: Power x1, Propulsion x1 1576 | -8/Materials | Build established: Scavenger-Mutant 2039 | -8/Materials | Build established: Mutant 2047 | -8/Materials | Discovered new exit (range 20) 2123 | -8/Materials | Core integrity fell below 50% 2639 | -8/Materials | Core integrity fell below 20% 2663 | -8/Materials | System corruption reached 10% 2679 | -8/Materials | Lost 3 parts (1p1n1w) 2819 | -8/Materials | Destroyed by G-47 Trooper with Particle Gun Last Messages --------------- Slug penetrates Wall. Acquired 4 matter. Slug penetrates Wall. Acquired 1 matter. Slug penetrates Wall. Imp. Deuterium Engine destroyed. Critical hit (Burn: +37). System corrupted: Imp. Carbon-fiber Leg rejected. Slug penetrates Wall. G-47 Trooper destroyed. Wall collapses. Acquired Imp. Carbon-fiber Leg. U-05 Engineer builds a Wall. System corrupted: Substantial component data lost. Imp. Carbon-fiber Leg destroyed. Slug penetrates U-05 Engineer. G-47 Trooper suffers critical hit (Burn). Slug penetrates G-47 Trooper. Map ----- +----------------------------------------------------+ | ?????????????????????????????????????????????? | | ?????????????????????????????????????????????? | | ?????????????????????????????????????????????? | | ?????????????????????????????????????????????? | | ?????????????????????????????????????????????? | | ???????????????????????????????????a?????????? | | ?????????????????????????????????????????????? | | ?????????????????????????????????????????????? | | ?????????????????????????????????????????????? | | ?????????????????????????????????????????????? | | ?????????????????????????????????????????????? | | ?????????????????????????????????????????????? | | ?????????????????????????????????????????????? | | ?????????????????????????????????????????????? | | ?????????????????????????########????????????? | | ?????????????????????????# #????????????? | | ????????????????????????## == #????????????? | | ????????????????????????#*!== #??????####### | | ?????????????????????????#%= #??????# | | ????????????????????##???#== #??????# " | | ?????????????#?????####### #??????# """ | | ?????######### ##### ###+########### "" | | ?????# =% r% % # """ | | ?????# H = g + "" | | ?????# g % %% # """ | | ?????????#######+###!@ = # ## # """ | | ????????????? ###*[## ## # """ | | ?????????# ??????# ##* ||!!## + " | | ?????????# ??????????#] ##**||!!## "#### | | ?????????????????????# ########## ##??####### | | ?????????????????????#% #????????# #?????????? | | ?????????????????????# #????????#%#?????????? | | ?????????????????????#|=########## ########### | | ?????????????????????#%* | | #########????#########=! | | # #????# % | | # #????# ##################### | | # """#????# """"" ""#???????????????????# | | # """#????# """"" T"#???######??????????? | | # """###### """" ""##### #??????????? | | # + = #??????????? | | # """# T #??????????? | | # """## ##### #??????????? | | # """## ############### #######?????? | | # ## #?????# # # * #?????? | | # ## ### #?????# + + [ |#?????? | | ########## #?# #?????# # #] #?????? | | ?????????# #?# #?????######### # !] /#?????? | | ?????????# #?# ######## # # ]] #?????? | | ??????####+### #= # * # #######?????? | +----------------------------------------------------+ Best States ------------- Heat Dissipation 31 Energy Generation 21 Energy Capacity 325 Matter Stores 300 Matter Capacity 300 Sight Range 20 Robot Scan Range 15 Terrain Scan Density 110 Weapon Shielding 33 Evasion (%) 55 Target Analysis 5 Recoil Reduction 3 Item Schematics ----------------- None Robot Schematics ------------------ None Fabricated ------------ Nothing Repaired ---------- Nothing Alien Tech Used ----------------- None Achievements -------------- None Challenges ------------ None Game ------ Seed PrecisionLightpackMallet Manual? 0 Play Time 00:32:05 Cumulative 25.7 hours Start 2025.09.05 @ 07:35:45 End 2025.09.12 @ 05:41:08 Sessions 3 Manual Loads 0 Difficulty Rogue Special Mode None Game No. 30 Rogue 3 Adventurer 0 Explorer 27 Win Type - Total 0 Types 0/0/0/0/0/0/0/0/0/0 Lore% 17 Gallery% 30 Achievement% 24 Wizard Run 0 Options --------- Layout 2 ASCII 0 Keyboard 0 Movement Mouse Keybinds 0 Fullscreen 2 Font 16/SmallcapsGlow Map View 50x44 Zoom Use 0% Tactical HUD 0 Map Filters NONE Filters NONE Steam X RUN: 9f96356a-cc8f-412f-9989-c0ab82579fee